fUSD/lending_fUSD_20250806
["ID","MTS","AMOUNT","RATE_DAILY","PERIOD"]
[377552681,1754441462990,-404.38,0.00035616,14]
[377552682,1754441463000,-400.0,0.00035616,14]
[377552683,1754441463011,-400.0,0.00035616,14]
[377552684,1754441463022,-1433.5,0.00035616,14]
[377552685,1754441463033,-2230.76,0.00035616,14]
[377552686,1754441463044,-400.0,0.00035616,14]
[377552687,1754441463057,-2230.76,0.00035616,14]
[377552688,1754441463067,-400.0,0.00035616,14]
[377552689,1754441463078,-400.0,0.00035616,14]
[377552690,1754441463089,-400.0,0.00035616,14]
[377552691,1754441463100,-491.84,0.00035616,14]
[377552692,1754441463110,-401.5829476,0.00035616,14]
[377552693,1754441463121,-2712.5,0.00035616,14]
[377552694,1754441463132,-2172.68,0.00035616,14]
[377552695,1754441463143,-400.0,0.00035616,14]
[377552696,1754441463153,-754.87,0.00035616,14]
[377552697,1754441463165,-1745.64,0.00035616,14]
[377552698,1754441463176,-400.0,0.00035616,14]
[377552699,1754441463187,-1321.58,0.00035616,14]
[377552700,1754441463199,-1572.7,0.00035616,14]
[377552701,1754441463210,-637.65,0.00035616,14]
[377552702,1754441463221,-400.0,0.00035616,14]
[377552703,1754441463232,-2465.94,0.00035616,14]
[377552704,1754441463242,-400.0,0.00035616,14]
[377552705,1754441463254,-2822.57,0.00035616,14]
[377552706,1754441463265,-400.0,0.00035616,14]
[377552707,1754441463277,-2639.92,0.00035616,14]
[377552708,1754441463287,-1062.69,0.00035616,14]
[377552709,1754441463298,-600.46,0.00035616,14]
[377552710,1754441463310,-646.78,0.00035616,14]
[377552711,1754441463321,-500.0,0.00035616,14]
[377552712,1754441463332,-3354.37,0.00035616,14]
[377552713,1754441463343,-500.0,0.00035616,14]
[377552714,1754441463353,-400.0,0.00035616,14]
[377552715,1754441463364,-653.54,0.00035616,14]
[377552716,1754441463375,-400.0,0.00035616,14]
[377552717,1754441463384,-400.0,0.00035616,14]
[377552718,1754441463395,-400.0,0.00035616,14]
[377552719,1754441463405,-439.55,0.00035616,14]
[377552720,1754441463416,-1550.77,0.00035616,14]
[377552721,1754441463431,-3631.96,0.00035616,14]
[377552722,1754441463441,-500.0,0.00035616,14]
[377552723,1754441463452,-500.0,0.00035616,14]
[377552724,1754441463462,-950.2,0.00035616,14]
[377552725,1754441463472,-500.0,0.00035616,14]
[377552726,1754441463483,-1175.89,0.00035616,14]
[377552727,1754441463494,-400.0,0.00035616,14]
[377552728,1754441463505,-400.0,0.00035616,14]
[377552729,1754441463515,-250.0,0.00035616,14]
[377552730,1754441463526,-400.0,0.00035616,14]
[377552731,1754441463536,-2387.83,0.00035616,14]
[377552732,1754441463546,-500.0,0.00035616,14]
[377552733,1754441463558,-400.0,0.00035616,14]
[377552734,1754441463568,-500.0,0.00035616,14]
[377552735,1754441463581,-468.7,0.00035616,14]
[377552736,1754441463591,-500.0,0.00035616,14]
[377552737,1754441463602,-500.0,0.00035616,14]
[377552738,1754441463613,-400.0,0.00035616,14]
[377552739,1754441463623,-196.80505859,0.00035616,14]
[377552740,1754441463634,-400.0,0.00035616,14]
[377552741,1754441463644,-1287.39,0.00035616,14]
[377552742,1754441463655,-537.97,0.00035616,14]
[377552743,1754441463665,-708.49,0.00035616,14]
[377552744,1754441463677,-1655.21,0.00035616,14]
[377552745,1754441463687,-400.0,0.00035616,14]
[377552746,1754441463698,-500.0,0.00035616,14]
[377552747,1754441463710,-500.0,0.00035616,14]
[377552748,1754441463722,-500.0,0.00035616,14]
[377552749,1754441463733,-500.0,0.00035616,14]
[377552750,1754441463744,-500.0,0.00035616,14]
[377552751,1754441463755,-1502.44,0.00035616,14]
[377552752,1754441463766,-500.0,0.00035616,14]
[377552753,1754441463777,-1904.84,0.00035616,14]
[377552754,1754441463788,-500.0,0.00035616,14]
[377552755,1754441463799,-436.8,0.00035616,14]
[377552756,1754441463811,-1937.36,0.00035616,14]
[377552757,1754441463823,-500.0,0.00035616,14]
[377552758,1754441463833,-500.0,0.00035616,14]
[377552759,1754441463845,-502.58,0.00035616,14]
[377552760,1754441463857,-500.0,0.00035616,14]
[377552761,1754441463867,-1256.09,0.00035616,14]
[377552762,1754441463878,-500.0,0.00035616,14]
[377552763,1754441463891,-500.0,0.00035616,14]
[377552764,1754441463902,-383.89529425,0.00035616,14]
[377552765,1754441463912,-400.0,0.00035616,14]
[377552766,1754441463923,-5237.42,0.00035616,14]
[377552767,1754441463934,-400.0,0.00035616,14]
[377552768,1754441463945,-792.93,0.00035616,14]
[377552769,1754441463956,-2425.37,0.00035616,14]
[377552770,1754441463967,-660.48,0.00035616,14]
[377552771,1754441463978,-2326.22,0.00035616,14]
[377552772,1754441463988,-859.27,0.00035616,14]
[377552773,1754441463999,-3169.34,0.00035616,14]
[377552774,1754441464010,-2897.41,0.00035616,14]
[377552775,1754441464023,-400.0,0.00035616,14]
[377552776,1754441464034,-542.44,0.00035616,14]
[377552777,1754441464045,-555.48,0.00035616,14]
[377552778,1754441464058,-976.54,0.00035616,14]
[377552779,1754441464068,-1950.73,0.00035616,14]
[377552780,1754441464079,-1971.75,0.00035616,14]
[377552781,1754441464089,-2000.43,0.00035616,14]
[377552782,1754441464100,-400.0,0.00035616,14]
[377552783,1754441464110,-2747.08,0.00035616,14]
[377552784,1754441464121,-400.0,0.00035616,14]
[377552785,1754441464132,-400.0,0.00035616,14]
[377552786,1754441464142,-494.46,0.00035616,14]
[377552787,1754441464154,-464.42,0.00035616,14]
[377552788,1754441464165,-400.0,0.00035616,14]
[377552789,1754441464176,-833.63,0.00035616,14]
[377552790,1754441464187,-1835.8,0.00035616,14]
[377552791,1754441464198,-2435.89,0.00035616,14]
[377552792,1754441464210,-592.44,0.00035616,14]
[377552793,1754441464221,-500.0,0.00035616,14]
[377552794,1754441464232,-580.91,0.00035616,14]
[377552795,1754441464243,-2478.44,0.00035616,14]
[377552796,1754441464254,-1260.06,0.00035616,14]
[377552797,1754441464265,-2732.77,0.00035616,14]
[377552798,1754441464275,-400.0,0.00035616,14]
[377552799,1754441464286,-905.67,0.00035616,14]
[377552800,1754441464298,-400.0,0.00035616,14]
[377552801,1754441464309,-1828.31,0.00035616,14]
[377552802,1754441464319,-940.64,0.00035616,14]
[377552803,1754441464330,-3315.81,0.00035616,14]
[377552804,1754441464342,-400.0,0.00035616,7]
[377552805,1754441464352,-2877.34,0.00035616,14]
[377552806,1754441464362,-426.00442135,0.00035616,14]
[377552807,1754441464372,-1569.5,0.00035616,14]
[377552808,1754441464382,-735.33,0.00035616,14]
[377552809,1754441464393,-1040.21,0.00035616,14]
[377552810,1754441464403,-1401.87,0.00035616,14]
[377552811,1754441464414,-2502.65,0.00035616,14]
[377552812,1754441464424,-2735.92,0.00035616,14]
[377552813,1754441464434,-400.0,0.00035616,14]
[377552814,1754441464444,-682.57,0.00035616,14]
[377552815,1754441464455,-1945.55,0.00035616,14]
[377552816,1754441464466,-400.0,0.00035616,14]
[377552817,1754441464476,-1809.88,0.00035616,14]
[377552818,1754441464486,-1395.67,0.00035616,14]
[377552819,1754441464498,-400.0,0.00035616,14]
[377552820,1754441464509,-1389.62,0.00035616,14]
[377552821,1754441464520,-433.09,0.00035616,14]
[377552822,1754441464530,-400.0,0.00035616,14]
[377552823,1754441464541,-400.0,0.00035616,14]
[377552824,1754441464551,-919.88,0.00035616,14]
[377552825,1754441464563,-667.2,0.00035616,14]
[377552826,1754441464574,-1403.76,0.00035616,14]
[377552827,1754441464585,-810.12,0.00035616,14]
[377552828,1754441464595,-400.0,0.00035616,14]
[377552829,1754441464605,-400.0,0.00035616,14]
[377552830,1754441464616,-400.0,0.00035616,14]
[377552831,1754441464627,-2817.59,0.00035616,14]
[377552832,1754441464637,-1863.14,0.00035616,14]
[377552833,1754441464649,-3376.26,0.00035616,14]
[377552834,1754441464660,-400.0,0.00035616,14]
[377552835,1754441464671,-2200.93,0.00035616,14]
[377552836,1754441464682,-400.0,0.00035616,14]
[377552837,1754441465057,-2533.58,0.00035616,14]
[377552838,1754441465069,-3061.86,0.00035616,14]
[377552839,1754441465078,-2174.63,0.00035616,14]
[377552840,1754441465088,-400.0,0.00035616,14]
[377552841,1754441465097,-989.57,0.00035616,14]
[377552842,1754441465108,-2557.33,0.00035616,14]
[377552843,1754441465117,-417.73,0.00035616,14]
[377552844,1754441465127,-2796.58,0.00035616,14]
[377552845,1754441465137,-400.0,0.00035616,14]
[377552846,1754441465146,-437.5159095,0.00035616,14]
[377552847,1754441465156,-336.27103571,0.00035616,7]
[377552848,1754441465165,-400.0,0.00035616,14]
[377552849,1754441465175,-651.35,0.00035616,14]
[377552850,1754441465184,-400.0,0.00035616,14]
[377552851,1754441465194,-1873.09,0.00035616,14]
[377552852,1754441465203,-1264.22,0.00035616,14]
[377552853,1754441465213,-797.86,0.00035616,14]
[377552854,1754441465222,-1968.89,0.00035616,14]
[377552855,1754441465232,-1137.49,0.00035616,14]
[377552856,1754441465242,-1401.02,0.00035616,14]
[377552857,1754441465252,-400.0,0.00035616,14]
[377552858,1754441465261,-1538.75,0.00035616,14]
[377552859,1754441465271,-2958.1,0.00035616,14]
[377552860,1754441465281,-4053.68,0.00035616,14]
[377552861,1754441465291,-2121.69,0.00035616,14]
[377552862,1754441465300,-400.0,0.00035616,14]
[377552863,1754441465313,-1555.77,0.00035616,14]
[377552864,1754441465322,-400.0,0.00035616,14]
[377552865,1754441465331,-714.52,0.00035616,14]
[377552866,1754441465341,-400.0,0.00035616,14]
[377552867,1754441465350,-3019.05,0.00035616,14]
[377552868,1754441465360,-747.3,0.00035616,14]
[377552869,1754441465370,-400.0,0.00035616,14]
[377552870,1754441465380,-747.3,0.00035616,14]
[377552871,1754441465392,-1712.65,0.00035616,14]
[377552872,1754441465402,-747.3,0.00035616,14]
[377552873,1754441465413,-1064.54,0.00035616,14]
[377552874,1754441465422,-400.0,0.00035616,14]
[377552875,1754441465432,-747.3,0.00035616,14]
[377552876,1754441465441,-747.3,0.00035616,14]
[377552877,1754441465451,-1832.33,0.00035616,14]
[377552878,1754441465460,-1400.65,0.00035616,14]
[377552879,1754441465469,-747.3,0.00035616,14]
[377552880,1754441465479,-366.56240777,0.00035616,14]
[377552881,1754441465488,-747.3,0.00035616,14]
[377552882,1754441465498,-673.86,0.00035616,14]
[377552883,1754441465507,-400.0,0.00035616,14]
[377552884,1754441465517,-747.3,0.00035616,14]
[377552885,1754441465527,-747.3,0.00035616,14]
[377552886,1754441465536,-747.3,0.00035616,14]
[377552887,1754441465545,-747.3,0.00035616,14]
[377552888,1754441465555,-747.3,0.00035616,14]
[377552889,1754441465564,-747.3,0.00035616,14]
[377552890,1754441465573,-747.3,0.00035616,14]
[377552891,1754441465583,-747.3,0.00035616,14]
[377552892,1754441465592,-2397.71,0.00035616,14]
[377552893,1754441465601,-747.3,0.00035616,14]
[377552894,1754441465610,-1555.37,0.00035616,14]
[377552895,1754441465619,-772.45,0.00035616,14]
[377552896,1754441465629,-2628.97,0.00035616,14]
[377552897,1754441465638,-747.3,0.00035616,14]
[377552898,1754441465647,-747.3,0.00035616,14]
[377552899,1754441465657,-400.0,0.00035616,14]
[377552900,1754441465666,-747.3,0.00035616,14]
[377552901,1754441465676,-747.3,0.00035616,14]
[377552902,1754441465685,-747.3,0.00035616,14]
[377552903,1754441465694,-1354.35,0.00035616,14]
[377552904,1754441465704,-556.98,0.00035616,14]
[377552905,1754441465713,-400.0,0.00035616,14]
[377552906,1754441465722,-747.3,0.00035616,14]
[377552907,1754441465732,-747.3,0.00035616,14]
[377552908,1754441465741,-400.0,0.00035616,14]
[377552909,1754441465750,-1975.16,0.00035616,14]
[377552910,1754441465760,-3371.6,0.00035616,14]
[377552911,1754441465769,-400.0,0.00035616,14]
[377552912,1754441465779,-1488.07,0.00035616,14]
[377552913,1754441465788,-400.0,0.00035616,14]
[377552914,1754441465798,-1849.83,0.00035616,14]
[377552915,1754441465808,-747.44855006,0.00035616,14]
[377552916,1754441465818,-400.0,0.00035616,14]
[377552917,1754441465827,-1862.75,0.00035616,14]
[377552918,1754441465837,-400.0,0.00035616,14]
[377552919,1754441465847,-1788.09,0.00035616,14]
[377552920,1754441465860,-749.99,0.00035616,14]
[377552921,1754441465869,-1672.91,0.00035616,14]
[377552922,1754441465879,-555.1,0.00035616,14]
[377552923,1754441465888,-400.0,0.00035616,14]
[377552924,1754441465898,-937.39,0.00035616,14]
[377552925,1754441465907,-560.06,0.00035616,14]
[377552926,1754441465917,-400.0,0.00035616,14]
[377552927,1754441465926,-1720.95,0.00035616,14]
[377552928,1754441465937,-696.25,0.00035616,14]
[377552929,1754441465948,-1316.86,0.00035616,14]
[377552930,1754441465957,-1118.65,0.00035616,14]
[377552931,1754441465967,-2528.43,0.00035616,14]
[377552932,1754441465977,-1434.38,0.00035616,14]
[377552933,1754441465986,-1450.63,0.00035616,14]
[377552934,1754441465996,-400.0,0.00035616,14]
[377552935,1754441466005,-400.0,0.00035616,14]
[377552936,1754441466015,-400.0,0.00035616,14]
[377552937,1754441466025,-760.31,0.00035616,14]
[377552938,1754441466034,-3309.5,0.00035616,14]
[377552939,1754441466043,-400.0,0.00035616,14]
[377552940,1754441466053,-1568.07,0.00035616,14]
[377552941,1754441466064,-400.0,0.00035616,14]
[377552942,1754441466074,-2739.99,0.00035616,14]
[377552943,1754441466083,-400.0,0.00035616,14]
[377552944,1754441466093,-2098.76,0.00035616,14]
[377552945,1754441466102,-400.0,0.00035616,14]
[377552946,1754441466112,-400.0,0.00035616,14]
[377552947,1754441466122,-482.79,0.00035616,14]
[377552948,1754441466131,-1282.53,0.00035616,14]
[377552949,1754441466141,-400.0,0.00035616,14]
[377552950,1754441466150,-2733.78,0.00035616,14]
[377552951,1754441466159,-2849.66,0.00035616,14]
[377552952,1754441466169,-693.49,0.00035616,14]
[377552953,1754441466179,-400.0,0.00035616,14]
[377552954,1754441466188,-400.0,0.00035616,14]
[377552955,1754441466198,-1527.39,0.00035616,14]
[377552956,1754441466208,-400.0,0.00035616,14]
[377552957,1754441466218,-1889.37,0.00035616,14]
[377552958,1754441466228,-1880.55,0.00035616,14]
[377552959,1754441466238,-2202.71,0.00035616,14]
[377552960,1754441466248,-1249.54,0.00035616,14]
[377552961,1754441466258,-629.93,0.00035616,14]
[377552962,1754441466268,-1066.71,0.00035616,14]
[377552963,1754441466277,-1136.05,0.00035616,14]
[377552964,1754441466288,-400.0,0.00035616,14]
[377552965,1754441466298,-400.0,0.00035616,14]
[377552966,1754441466308,-1892.42,0.00035616,14]
[377552967,1754441466318,-2349.05,0.00035616,14]
[377552968,1754441466328,-400.0,0.00035616,14]
[377552969,1754441466337,-400.0,0.00035616,14]
[377552970,1754441466346,-400.0,0.00035616,14]
[377552971,1754441466356,-361.17124118,0.00035616,14]
[377552972,1754441466365,-400.0,0.00035616,14]
[377552973,1754441466375,-2270.72,0.00035616,14]
[377552974,1754441466384,-400.0,0.00035616,14]
[377552975,1754441466393,-400.0,0.00035616,14]
[377552976,1754441466403,-400.0,0.00035616,14]
[377552977,1754441466412,-400.0,0.00035616,14]
[377552978,1754441466422,-1486.7,0.00035616,14]
[377552979,1754441466431,-1795.28,0.00035616,14]
[377552980,1754441466441,-1477.02,0.00035616,14]
[377552981,1754441466450,-400.0,0.00035616,14]
[377552982,1754441466459,-1241.22,0.00035616,14]
[377552983,1754441466469,-499.58,0.00035616,14]
[377552984,1754441466478,-400.0,0.00035616,14]
[377552985,1754441466487,-862.34,0.00035616,14]
[377552986,1754441466497,-400.0,0.00035616,14]
[377552987,1754441466507,-1726.48,0.00035616,14]
[377552988,1754441466516,-583.45,0.00035616,14]
[377552989,1754441466525,-406.02292198,0.00035616,14]
[377552990,1754441466535,-2093.27,0.00035616,14]
[377552991,1754441466544,-558.87,0.00035616,14]
[377552992,1754441466556,-798.11,0.00035616,14]
[377552993,1754441466567,-400.0,0.00035616,14]
[377552994,1754441466577,-1413.75,0.00035616,14]
[377552995,1754441466586,-612.99,0.00035616,14]
[377552996,1754441466597,-1089.46,0.00035616,14]
[377552997,1754441466606,-400.0,0.00035616,14]
[377552998,1754441466616,-400.0,0.00035616,14]
[377552999,1754441466626,-400.0,0.00035616,14]
[377553000,1754441466637,-580.55,0.00035616,14]
[377553001,1754441466646,-443.87,0.00035616,14]
[377553002,1754441466656,-2144.28,0.00035616,14]
[377553003,1754441466666,-2267.17,0.00035616,14]
[377553004,1754441466675,-2224.09,0.00035616,14]
[377553005,1754441466685,-1704.68,0.00035616,14]
[377553006,1754441466695,-2131.42,0.00035616,14]
[377553007,1754441466705,-400.0,0.00035616,14]
[377553008,1754441466714,-400.0,0.00035616,14]
[377553009,1754441466724,-400.0,0.00035616,14]
[377553010,1754441466734,-913.04,0.00035616,14]
[377553011,1754441466743,-639.81,0.00035616,14]
[377553012,1754441466752,-908.5,0.00035616,14]
[377553013,1754441466762,-1185.36,0.00035616,14]
[377553014,1754441466771,-300.0,0.00035616,14]
[377553015,1754441466781,-400.0,0.00035616,14]
[377553016,1754441466790,-461.59458824,0.00035616,14]
[377553017,1754441466799,-868.3,0.00035616,14]
[377553018,1754441466810,-1924.65,0.00035616,14]
[377553019,1754441466820,-725.9,0.00035616,14]
[377553020,1754441466829,-400.0,0.00035616,14]
[377553021,1754441466839,-400.0,0.00035616,14]
[377553022,1754441466850,-2503.55,0.00035616,14]
[377553023,1754441466862,-1577.71,0.00035616,14]
[377553024,1754441466873,-417.57,0.00035616,14]
[377553025,1754441466883,-400.0,0.00035616,14]
[377553026,1754441466895,-1228.15,0.00035616,14]
[377553027,1754441466904,-400.0,0.00035616,14]
[377553028,1754441466916,-2568.76,0.00035616,14]
[377553029,1754441466928,-400.0,0.00035616,14]
[377553030,1754441466937,-450.32,0.00035616,14]
[377553031,1754441466947,-2135.32,0.00035616,14]
[377553032,1754441466957,-1762.81,0.00035616,14]
[377553033,1754441466967,-2838.97,0.00035616,14]
[377553034,1754441466977,-857.39,0.00035616,14]
[377553035,1754441466988,-2270.22,0.00035616,14]
[377553036,1754441466998,-470.07,0.00035616,14]
[377553037,1754441467010,-400.0,0.00035616,14]
[377553038,1754441467020,-1399.29,0.00035616,14]
[377553039,1754441467031,-400.0,0.00035616,14]
[377553040,1754441467041,-400.0,0.00035616,14]
[377553041,1754441467051,-6325.45,0.00035616,14]
[377553042,1754441467063,-3352.54,0.00035616,14]
[377553043,1754441467072,-1553.18,0.00035616,14]
[377553044,1754441467084,-2779.06,0.00035616,14]
[377553045,1754441467094,-400.0,0.00035616,14]
[377553046,1754441467104,-2028.48,0.00035616,14]
[377553047,1754441467114,-1803.34,0.00035616,14]
[377553048,1754441467123,-3478.22,0.00035616,14]
[377553049,1754441467134,-1140.76,0.00035616,14]
[377553050,1754441467143,-1456.01,0.00035616,14]
[377553051,1754441467152,-400.0,0.00035616,14]
[377553052,1754441467162,-848.25,0.00035616,14]
[377553053,1754441467172,-2361.48,0.00035616,14]
[377553054,1754441467181,-400.0,0.00035616,14]
[377553055,1754441467191,-523.76,0.00035616,14]
[377553056,1754441467200,-699.2,0.00035616,14]
[377553057,1754441467209,-431.86,0.00035616,14]
[377553058,1754441467219,-400.0,0.00035616,14]
[377553059,1754441467229,-2255.88,0.00035616,14]
[377553060,1754441467238,-2152.57,0.00035616,14]
[377553061,1754441467247,-888.33,0.00035616,14]
[377553062,1754441467256,-874.98,0.00035616,14]
[377553063,1754441467265,-3293.89,0.00035616,14]
[377553064,1754441467274,-939.85,0.00035616,14]
[377553065,1754441467284,-400.0,0.00035616,14]
[377553066,1754441467293,-1909.54,0.00035616,14]
[377553067,1754441467303,-400.0,0.00035616,14]
[377553068,1754441467313,-3374.44,0.00035616,14]
[377553069,1754441467322,-1102.01,0.00035616,14]
[377553070,1754441467331,-2109.15,0.00035616,14]
[377553071,1754441467549,-400.0,0.00035616,2]
[377553072,1754441467562,-2145.79,0.00035616,14]
[377553073,1754441467572,-618.51,0.00035616,14]
[377553074,1754441467581,-400.0,0.00035616,14]
[377553075,1754441467591,-434.85,0.00035616,14]
[377553076,1754441467601,-2357.82,0.00035616,14]
[377553077,1754441467610,-400.0,0.00035616,14]
[377553078,1754441467620,-400.0,0.00035616,14]
[377553079,1754441467629,-1950.63,0.00035616,14]
[377553080,1754441467639,-1520.27,0.00035616,14]
[377553081,1754441467648,-466.49,0.00035616,14]
[377553082,1754441467657,-400.0,0.00035616,14]
[377553083,1754441467666,-1497.54,0.00035616,14]
[377553084,1754441467676,-400.0,0.00035616,14]
[377553085,1754441467685,-2939.65,0.00035616,14]
[377553086,1754441467695,-1497.54,0.00035616,14]
[377553087,1754441467704,-911.66,0.00035616,14]
[377553088,1754441467714,-1497.54,0.00035616,14]
[377553089,1754441467729,-400.0,0.00035616,14]
[377553090,1754441467740,-2124.06,0.00035616,14]
[377553091,1754441467749,-400.0,0.00035616,14]
[377553092,1754441467758,-1497.54,0.00035616,14]
[377553093,1754441467768,-400.0,0.00035616,14]
[377553094,1754441467777,-400.0,0.00035616,14]
[377553095,1754441467787,-1497.54,0.00035616,14]
[377553096,1754441467797,-756.79,0.00035616,2]
[377553097,1754441467807,-3264.55,0.00035616,14]
[377553098,1754441467817,-1497.54,0.00035616,14]
[377553099,1754441467826,-1497.54,0.00035616,14]
[377553100,1754441467836,-1497.54,0.00035616,14]
[377553101,1754441467847,-400.0,0.00035616,14]
[377553102,1754441467864,-1497.54,0.00035616,14]
[377553103,1754441467874,-400.0,0.00035616,14]
[377553104,1754441467884,-400.0,0.00035616,14]
[377553105,1754441467895,-1497.54,0.00035616,14]
[377553106,1754441467904,-1497.54,0.00035616,14]
[377553107,1754441467914,-1497.54,0.00035616,14]
[377553108,1754441467923,-1497.54,0.00035616,14]
[377553109,1754441467936,-1922.06,0.00035616,14]
[377553110,1754441467947,-1497.54,0.00035616,14]
[377553111,1754441467958,-1497.54,0.00035616,14]
[377553112,1754441467968,-1497.54,0.00035616,14]
[377553113,1754441467977,-1266.51,0.00035616,14]
[377553114,1754441467990,-400.0,0.00035616,14]
[377553115,1754441468000,-1497.54,0.00035616,14]
[377553116,1754441468011,-1497.54,0.00035616,14]
[377553117,1754441468021,-2559.37,0.00035616,14]
[377553118,1754441468031,-400.0,0.00035616,14]
[377553119,1754441468042,-400.0,0.00035616,14]
[377553120,1754441468052,-1497.54,0.00035616,14]
[377553121,1754441468063,-400.0,0.00035616,14]
[377553122,1754441468073,-1497.54,0.00035616,14]
[377553123,1754441468084,-1150.41,0.00035616,14]
[377553124,1754441468094,-1497.54,0.00035616,14]
[377553125,1754441468105,-1497.54,0.00035616,14]
[377553126,1754441468115,-1497.54,0.00035616,14]
[377553127,1754441468126,-1497.75464479,0.00035616,14]
[377553128,1754441468136,-400.0,0.00035616,14]
[377553129,1754441468146,-1486.85,0.00035616,14]
[377553130,1754441468156,-400.0,0.00035616,2]
[377553131,1754441468166,-400.0,0.00035616,14]
[377553132,1754441468176,-484.1,0.00035616,14]
[377553133,1754441468193,-3321.44,0.00035616,14]
[377553134,1754441468203,-993.02,0.00035616,14]
[377553135,1754441468213,-400.0,0.00035616,14]
[377553136,1754441468224,-1838.65,0.00035616,14]
[377553137,1754441468234,-495.42,0.00035616,14]
[377553138,1754441468245,-400.0,0.00035616,14]
[377553139,1754441468256,-1184.42,0.00035616,14]
[377553140,1754441468265,-400.0,0.00035616,14]
[377553141,1754441468276,-400.0,0.00035616,14]
[377553142,1754441468286,-400.0,0.00035616,14]
[377553143,1754441468296,-150.0,0.0003562,2]
[377553144,1754441468307,-150.0,0.00035624,7]
[377553145,1754441468317,-159.59182499,0.00035633,2]
[377553146,1754441468327,-150.0,0.00035648,2]
[377553147,1754441468338,-150.0,0.00035664,7]
[377553148,1754441468348,-500.0,0.00035673,5]
[377553149,1754441468359,-560.55410599,0.00035673,5]
[377553150,1754441468369,-500.0,0.00035673,5]
[377553151,1754441468379,-500.48724599,0.00035673,5]
[377553152,1754441468388,-247.43367434,0.00035673,5]
[377553153,1754441468397,-201.0772513,0.00035673,5]
[377553154,1754441468407,-500.0,0.00035673,5]
[377553155,1754441468419,-500.9922403,0.00035673,5]
[377553156,1754441468430,-500.0,0.00035673,5]
[377553157,1754441468440,-575.82350403,0.00035673,5]
[377553158,1754441468449,-500.0,0.00035673,5]
[377553159,1754441468459,-558.79169219,0.00035673,5]
[377553160,1754441468471,-500.0,0.00035673,5]
[377553161,1754441468482,-500.0,0.00035673,5]
[377553162,1754441468493,-478.90993316,0.00035673,5]
[377553163,1754441468504,-164.52771162,0.00035673,5]
[377553164,1754441468516,-500.0,0.00035673,5]
[377553165,1754441468526,-500.0,0.00035673,5]
[377553166,1754441468536,-500.0,0.00035673,5]
[377553167,1754441468546,-500.0,0.00035673,5]
[377553168,1754441468557,-500.0,0.00035673,5]
[377553169,1754441468566,-500.0,0.00035673,5]
[377553170,1754441468577,-500.0,0.00035673,5]
[377553171,1754441468586,-164.78109974,0.00035673,5]
[377553172,1754441468596,-160.14567698,0.00035673,5]
[377553173,1754441468606,-161.42842466,0.00035673,5]
[377553174,1754441468618,-160.04515254,0.00035673,5]
[377553175,1754441468628,-500.0,0.00035673,5]
[377553176,1754441468638,-500.0,0.00035673,5]
[377553177,1754441468648,-500.0,0.00035673,5]
[377553178,1754441468657,-500.0,0.00035673,5]
[377553179,1754441468667,-275.1505504,0.00035673,5]
[377553180,1754441468678,-300.0,0.00035673,3]